[Event "Asian Amateur-ch Open 2022"]
[Site "Muscat"]
[Date "2022.10.02"]
[Round "3.15"]
[White "Sharma Pankaj"]
[Black "Khalili, Mehdi"]
[Result "1/2-1/2"]
[ECO "A36"]
[WhiteElo "1764"]
[BlackElo "1575"]
[Annotator "NA RC COMBH"]
[PlyCount "125"]
[EventDate "2022.09.29"]
[EventType "swiss"]
[SourceTitle "playchess.com"]
[Source "ChessBase"]
[SourceQuality "1"]
[TimeControl "5400+30"]

1. c4 {[%emt 0:00:04]} Nf6 {[%emt 0:00:51]} 2. Nc3 {[%emt 0:00:10]} g6 {[%emt 0:00:14]} 3. g3 {[%emt 0:00:22]} Bg7 {[%emt 0:00:12]} 4. Bg2 {[%emt 0:00:03]} O-O {[%emt 0:00:24]} 5. e4 {[%emt 0:00:38]} d6 {[%emt 0:02:04]} 6. Nge2 {[%emt 0:00:04]} c5 {[%emt 0:01:36]} 7. O-O {[%emt 0:00:15]} Nc6 {[%emt 0:01:54]} 8. d3 {[%emt 0:01:33]} Rb8 {[%emt 0:11:30]} 9. h3 {[%emt 0:03:10]} a6 {[%emt 0:01:16]} 10. a4 {[%emt 0:00:13]} Bd7 {[%emt 0:03:47]} 11. Be3 {[%emt 0:03:56]} Qc8 {[%emt 0:06:09]} 12. Kh2 {[%emt 0:01:28]} Ne5 {[%emt 0:15:10]} 13. Nd5 {[%emt 0:12:12]} Nxd5 {[%emt 0:15:03]} 14. cxd5 {[%emt 0:05:22]} Be8 {[%emt 0:15:19]} 15. f4 {[%emt 0:02:05]} Nd7 {[%emt 0:01:47]} 16. Qd2 {[%emt 0:00:53]} b5 {[%emt 0:06:10]} 17. axb5 {[%emt 0:02:23]} Rxb5 {[%emt 0:07:13]} 18. Nc3 {[%emt 0:02:29]} Rb3 {[%emt 0:00:20]} 19. Ra2 {[%emt 0:02:00]} Qb8 {[%emt 0:05:40]} 20. Rf2 {[%emt 0:01:39]} Qb6 {[%emt 0:02:30]} 21. Qc2 {[%emt 0:04:29]} Nb8 {[%emt 0:00:36]} 22. Bf1 {[%emt 0:01:24]} Bd7 {[%emt 0:00:17]} 23. Be2 {[%emt 0:00:54]} Rc8 {[%emt 0:01:07]} 24. f5 {[%emt 0:03:13]} Rc7 {[%emt 0:00:35]} 25. fxg6 {[%emt 0:04:29]} hxg6 {[%emt 0:00:06]} 26. Bd1 {[%emt 0:00:44]} Rb4 {[%emt 0:00:40]} 27. Qe2 {[%emt 0:04:38]} Rb7 {[%emt 0:00:23]} 28. Qf3 {[%emt 0:00:52]} Be8 {[%emt 0:00:33]} 29. Ba4 {[%emt 0:04:57]} Qd8 {[%emt 0:00:01]} 30. Bxe8 {[%emt 0:00:45]} Qxe8 {[%emt 0:00:02]} 31. Qe2 {[%emt 0:03:01]} Rb3 {[%emt 0:01:17]} 32. Qc2 {[%emt 0:00:42]} Qd8 {[%emt 0:00:32]} 33. Qc1 {[%emt 0:05:10]} a5 {[%emt 0:00:37]} 34. Rc2 {[%emt 0:00:32]} Na6 {[%emt 0:00:19]} 35. Rd2 {[%emt 0:04:15]} Nb4 {[%emt 0:01:03]} 36. Ra3 {[%emt 0:01:25]} Na6 {[%emt 0:00:30]} 37. d4 {[%emt 0:03:11]} cxd4 {[%emt 0:00:38]} 38. Rxb3 {[%emt 0:00:52]} Rxb3 {[%emt 0:00:03]} 39. Bxd4 {[%emt 0:00:27]} Bh6 {[%emt 0:00:26]} 40. Qc2 {[%emt 0:01:25]} Qb8 {[%emt 0:00:16]} 41. Rf2 {[%emt 0:01:00]} Rb4 {[%emt 0:00:21]} 42. Ne2 {[%emt 0:02:27]} Bg7 {[%emt 0:01:21]} 43. Bxg7 {[%emt 0:00:54]} Kxg7 {[%emt 0:00:01]} 44. Qc3+ {[%emt 0:01:25]} Kg8 {[%emt 0:00:30]} 45. Qf3 {[%emt 0:06:20]} Qe8 {[%emt 0:00:38]} 46. Nc3 {[%emt 0:00:51]} Nc5 {[%emt 0:00:27]} 47. h4 {[%emt 0:01:55]} Nd7 {[%emt 0:00:56]} 48. Rc2 {[%emt 0:06:05]} Ne5 {[%emt 0:00:02]} 49. Qe2 {[%emt 0:01:31]} Qb8 {[%emt 0:00:29]} 50. h5 {[%emt 0:00:22]} Kg7 {[%emt 0:00:10]} 51. hxg6 {[%emt 0:02:44]} Nxg6 {[%emt 0:00:40]} 52. Nd1 {[%emt 0:00:40]} Qh8+ {[%emt 0:00:30]} 53. Kg2 {[%emt 0:00:01]} Qb8 {[%emt 0:00:43]} 54. Ne3 {[%emt 0:00:15]} e6 {[%emt 0:00:31]} 55. dxe6 {[%emt 0:02:30]} fxe6 {[%emt 0:00:01]} 56. Qg4 {[%emt 0:00:23]} Rxb2 {[%emt 0:00:52]} 57. Qxe6 {[%emt 0:00:23]} Rxc2+ {[%emt 0:00:29]} 58. Nxc2 {[%emt 0:00:01]} Qb2 {[%emt 0:00:36]} 59. Qd7+ {[%emt 0:01:03]} Kh6 {[%emt 0:00:17]} 60. Qh3+ {[%emt 0:00:27]} Kg7 {[%emt 0:00:08]} 61. Qd7+ {[%emt 0:00:12]} Kh6 {[%emt 0:00:03]} 62. Qh3+ {[%emt 0:00:17]} Kg7 {[%emt 0:00:01]} 63. Qd7+ {[%emt 0:01:50]} 1/2-1/2

[Event "Asian Amateur-ch Open 2022"]
[Site "Muscat"]
[Date "2022.10.02"]
[Round "3.16"]
[White "Ibnu, Iwan Schani"]
[Black "Maasarani, Mahmoud"]
[Result "0-1"]
[ECO "B25"]
[WhiteElo "1689"]
[BlackElo "1991"]
[Annotator "TA"]
[PlyCount "150"]
[EventDate "2022.09.29"]
[EventType "swiss"]
[SourceTitle "playchess.com"]
[Source "ChessBase"]
[SourceQuality "1"]
[TimeControl "5400+30"]

{[%evp 15,150,16,12,-10,0,-24,-16,-22,0,0,0,0,0,0,0,0,31,8,38,13,62,11,27,29,8,0,-4,-44,-8,-14,-31,-29,-21,-51,-23,-78,-66,-85,-68,-66,-58,-60,-31,-36,-31,-34,-26,-38,-20,-33,-15,-15,-15,-16,-6,-6,-6,-6,-6,-6,-6,-8,-8,-8,-8,-8,-8,-8,0,-8,-8,-35,-8,-8,-8,-8,-8,-8,-8,-8,-8,-8,-8,-8,-8,-21,0,0,0,0,0,0,0,0,0,0,0,-141,0,0,0,-141,-9,-9,-9,-9,-9,-141,-141,-141,-141,-29961,-29960,-29964,-29966,-29958,-1008,-29971,-29973,-29983,-29984,-29984,-29985,-29986,-29986,-29987,-29988,-29988,-29989,-29989,-29990,-29990,-29990,-29990,-29990,-29990,-29991]} 1. e4 {[%emt 0:00:03]} c5 {[%emt 0:03:34]} 2. Nc3 {[%emt 0:00:11]} d6 {[%emt 0:00:20]} 3. g3 {[%emt 0:00:11]} g6 {[%emt 0:00:50]} 4. Bg2 {[%emt 0:00:05]} Bg7 {[%emt 0:00:10]} 5. d3 {[%emt 0:00:19]} Nf6 {[%emt 0:00:41]} 6. Nge2 {[%emt 0:02:14]} O-O {[%emt 0:00:28]} 7. O-O {[%emt 0:00:18]} Nc6 {[%emt 0:00:37]} 8. h3 {[%emt 0:00:21]} Rb8 {[%emt 0:03:08]} 9. g4 {[%emt 0:06:04] B25: Closed Sicilian: 3 g3, lines without early Be3.} b5 {[%emt 0:05:37][%cal Bb7b5,Bb5b4][%mdl 32]} 10. Ng3 {[%emt 0:00:53]} b4 {[%emt 0:00:52]} 11. Nce2 {[%emt 0:00:40] [#] The position is equal.} h6 $146 {[%emt 0:04:40]} ({Predecessor:} 11... Nd7 12. f4 Ba6 13. a3 Qb6 14. axb4 c4+ 15. d4 e5 16. Be3 exd4 17. Bf2 Nxb4 18. Nxd4 {0-1 (44) Pancevski,F (2470)-Sjugirov,S (2610) Plovdiv 2012}) 12. f4 {[%emt 0:02:42][%cal Oe4e5]} Bd7 {[%emt 0:03:17]} 13. a3 {[%emt 0:14:28]} a5 {[%emt 0:09:44]} 14. axb4 {[%emt 0:08:06]} axb4 {[%emt 0:00:01]} 15. Be3 {[%emt 0:01:38][%cal Oe4e5]} Ne8 {[%emt 0:01:27]} 16. Rb1 {[%emt 0:03:05]} (16. e5 $5) 16... Nc7 {[%emt 0:05:41]} 17. Qd2 {[%emt 0:07:29][%cal Oe4e5]} Nb5 {[%emt 0:02:57]} (17... Kh7 $11 {should be considered.}) 18. f5 {[%emt 0:00:51]} (18. e5 $14) 18... Kh7 $11 {[%emt 0:00:38]} 19. Nf4 {[%emt 0:05:13]} e6 {[%emt 0:11:15]} 20. Nfe2 {[%emt 0:06:18]} Nbd4 {[%emt 0:06:58]} 21. Nxd4 {[%emt 0:12:48]} (21. Rf2 {is interesting.} g5 22. Nh5 Nxe2+ 23. Qxe2 Be5 24. Qd2) 21... Nxd4 {[%emt 0:04:55]} (21... cxd4 {keeps more tension.} 22. Bf2 b3 23. c4 Nb4) 22. fxg6+ {[%emt 0:05:46]} fxg6 {[%emt 0:00:04]} 23. Rxf8 {[%emt 0:00:18]} Qxf8 {[%emt 0:00:19]} 24. Rf1 {[%emt 0:00:05]} Qe7 {[%emt 0:00:54]} 25. b3 {[%emt 0:03:37]} (25. g5 $11 {remains equal.}) 25... Rf8 {[%emt 0:00:51]} 26. Qd1 {[%emt 0:09:16]} Rxf1+ {[%emt 0:02:49]} (26... Be5 {seems wilder.} 27. Ne2 Rxf1+ 28. Bxf1 Qf6) 27. Nxf1 {[%emt 0:00:16][%cal Bg3f1,Bf1d2,Bd2f3][%mdl 32]} Qf8 {[%emt 0:04:28] Black is more active.} 28. Nd2 {[%emt 0:00:24]} Bc6 {[%emt 0:03:05]} 29. Nf3 {[%emt 0:01:20]} Nb5 {[%emt 0:02:42][%cal Bd4b5,Bb5a3,Ba3b1][%mdl 32]} 30. Qf1 {[%emt 0:01:20]} Na3 {[%emt 0:01:31]} 31. Qf2 {[%emt 0:01:18]} e5 {[%emt 0:04:15]} 32. Ne1 {[%emt 0:01:04]} Qxf2+ {[%emt 0:04:10]} 33. Kxf2 {[%emt 0:00:09]} Bf6 {[%emt 0:00:18]} 34. Kg3 {[%emt 0:00:44] Against Bh4+} Nb1 {[%emt 0:02:07]} 35. h4 {[%emt 0:02:50]} Nc3 {[%emt 0:01:28]} 36. Bf3 {[%emt 0:00:47]} Kg7 {[%emt 0:01:33]} 37. Bd2 $1 {[%emt 0:00:34]} Nb5 {[%emt 0:00:52]} 38. Ng2 {[%emt 0:00:57]} Nd4 {[%emt 0:00:51]} 39. Bd1 {[%emt 0:00:16]} d5 {[%emt 0:00:00]} 40. exd5 {[%emt 0:00:15]} Bxd5 {[%emt 0:01:29]} 41. Ne3 {[%emt 0:00:01]} Ba8 {[%emt 0:03:09]} 42. Nc4 {[%emt 0:01:39]} e4 {[%emt 0:00:25]} 43. Nd6 {[%emt 0:02:41]} Be5+ {[%emt 0:02:30]} 44. Bf4 {[%emt 0:00:01]} Bxf4+ {[%emt 0:00:21]} 45. Kxf4 {[%emt 0:00:02]} exd3 {[%emt 0:00:06]} 46. cxd3 {[%emt 0:00:26][%mdl 4096] Endgame KBN-KBN} Bd5 {[%emt 0:00:00]} 47. Nc4 {[%emt 0:01:33]} Kf6 {[%emt 0:00:48] ...g5+ is the strong threat.} 48. g5+ {[%emt 0:00:25]} hxg5+ {[%emt 0:00:04]} 49. hxg5+ {[%emt 0:00:02]} Ke7 {[%emt 0:01:29]} 50. Ke5 {[%emt 0:00:09]} Be6 {[%emt 0:00:52]} 51. Nd2 {[%emt 0:01:44]} Nc6+ {[%emt 0:00:24]} 52. Ke4 {[%emt 0:00:20]} Kd6 {[%emt 0:00:52]} 53. Nc4+ {[%emt 0:00:34]} Bxc4 {[%emt 0:00:23]} 54. dxc4 {[%emt 0:00:05] KB-KN} Nd4 {[%emt 0:00:10]} 55. Kf4 $1 {[%emt 0:01:07]} Ne6+ {[%emt 0:01:27]} 56. Ke3 {[%emt 0:01:31]} (56. Kg4 $11) 56... Nd4 {[%emt 0:01:24]} (56... Nxg5 $17 {aiming for ...Ne6.} 57. Kf4 Ne6+ 58. Ke4 g5) 57. Ke4 {[%emt 0:00:35]} Ne6 {[%emt 0:00:24]} (57... Ke6 $11) 58. Ke3 $1 $17 {[%emt 0:00:06]} Ke5 {[%emt 0:00:15]} (58... Nxg5 $17 {White must now prevent ...Ne6.} 59. Kf4 Ne6+ 60. Ke4 g5) 59. Bc2 $11 {[%emt 0:00:31]} Nxg5 {[%emt 0:00:28] Strongly threatening ...Kf6.} 60. Bxg6 {[%emt 0:00:07]} Ne6 {[%emt 0:00:03] Threatening ...Nd4.} 61. Bc2 {[%emt 0:01:24]} (61. Bb1 $1 $11 {was the only way to keep the balance.}) 61... Nd4 $17 {[%emt 0:00:01]} 62. Bd1 {[%emt 0:00:01]} Nf5+ {[%emt 0:00:34]} 63. Kf3 $2 {[%emt 0:01:05][%mdl 8192] [#] White does not recover from this.} (63. Kd2 $17) 63... Kd4 $1 {[%emt 0:00:02]} 64. Kf4 {[%emt 0:00:37] [#]} Ne3 $1 {[%emt 0:00:35]} 65. Be2 {[%emt 0:00:24]} Nc2 {[%emt 0:00:22] ( -> ...Kc3)} 66. Kf5 {[%emt 0:00:26]} Kc3 {[%emt 0:00:41] Black mates.} 67. Ke5 {[%emt 0:00:24]} Kxb3 {[%emt 0:00:17]} 68. Kd5 {[%emt 0:00:19]} Kc3 {[%emt 0:00:08]} 69. Kxc5 {[%emt 0:00:35]} b3 {[%emt 0:00:04]} 70. Bd1 {[%emt 0:00:34]} b2 {[%emt 0:00:02]} 71. Bxc2 {[%emt 0:00:07]} Kxc2 {[%emt 0:00:14]} 72. Kd6 {[%emt 0:00:06]} b1=Q {[%emt 0:00:09]} 73. c5 {[%emt 0:00:04]} Qb8+ {[%emt 0:00:13]} 74. Kd7 {[%emt 0:00:38]} Qb7+ {[%emt 0:00:01]} 75. Kd6 {[%emt 0:00:02]} Qc8 {[%emt 0:00:18] Weighted Error Value: White=0.14 (very precise) /Black=0.15 (very precise)} 0-1

[Event "Asian Amateur-ch Open 2022"]
[Site "Muscat"]
[Date "2022.10.02"]
[Round "3.17"]
[White "Alharthi, Ahmed Mohammed A"]
[Black "Abdivaliev, Daniial"]
[Result "0-1"]
[ECO "A47"]
[WhiteElo "1950"]
[BlackElo "1528"]
[Annotator "TA"]
[PlyCount "96"]
[EventDate "2022.09.29"]
[EventType "swiss"]
[SourceTitle "playchess.com"]
[Source "ChessBase"]
[SourceQuality "1"]
[TimeControl "5400+30"]

{[%evp 10,95,2,3,11,13,15,0,0,0,0,-25,-12,-5,-5,-29,-27,-58,-13,-43,-42,-54,-51,-43,-3,-3,-3,-3,-6,-6,0,-14,7,0,6,0,7,0,32,23,40,33,40,33,48,0,-8,-24,0,0,0,0,0,0,0,-125,-46,-46,-46,-46,-46,-54,-39,-162,-100,-142,-146,-128,-5,-154,-27,-95,-100,-79,-29,-228,-238,-306,-247,-451,-407,-514,-485,-468,-454,-487,-491,-29999]} 1. d4 {[%emt 0:00:08]} Nf6 {[%emt 0:00:07]} 2. Bf4 {[%emt 0:00:11]} e6 {[%emt 0:00:03]} 3. e3 {[%emt 0:00:21]} c5 {[%emt 0:00:03]} 4. c3 {[%emt 0:02:41]} b6 {[%emt 0:00:11]} 5. Nd2 {[%emt 0:00:44]} Bb7 {[%emt 0:00:15]} 6. Ngf3 {[%emt 0:00:23]} h6 {[%emt 0:00:08] A47: 1 d4 Nf6 2 Nf3 b6: Torre, London and Colle Systems.} 7. h3 {[%emt 0:02:45] [#]} a6 $146 {[%emt 0:05:45]} ({Predecessor:} 7... d6 8. Nh2 g5 9. Bg3 Nbd7 10. Nhf3 Qc7 11. Nc4 b5 12. Na3 a6 13. Nc2 Be7 14. dxc5 Nxc5 {1-0 (45) Janaszak,D (2348)-Kabanova,E (2138) Chess.com INT 2020}) 8. Qb3 {[%emt 0:03:03]} d5 {[%emt 0:01:55] The position is equal.} 9. Be2 {[%emt 0:09:08]} Bd6 {[%emt 0:00:36]} 10. Ne5 {[%emt 0:01:34]} O-O {[%emt 0:02:55]} 11. O-O {[%emt 0:00:33]} Qc7 {[%emt 0:01:12]} 12. Bh2 {[%emt 0:03:26]} Nc6 {[%emt 0:02:28]} 13. f4 {[%emt 0:02:01]} Nd7 {[%emt 0:06:06]} 14. Bg4 {[%emt 0:10:13]} b5 {[%emt 0:14:56]} 15. Rac1 {[%emt 0:07:12]} Ne7 {[%emt 0:07:54]} 16. Qc2 {[%emt 0:13:18]} f5 {[%emt 0:05:52]} 17. Nxd7 {[%emt 0:05:16]} Qxd7 {[%emt 0:00:30]} 18. Be2 {[%emt 0:01:09]} Rac8 {[%emt 0:02:53]} 19. Nf3 {[%emt 0:04:08]} Nc6 {[%emt 0:03:31]} 20. Qd2 {[%emt 0:02:06]} Rc7 {[%emt 0:08:29]} 21. Ne5 {[%emt 0:02:40]} Nxe5 {[%emt 0:04:57]} 22. fxe5 {[%emt 0:00:28]} Be7 {[%emt 0:00:07]} 23. g4 {[%emt 0:02:56]} cxd4 {[%emt 0:07:07]} 24. exd4 {[%emt 0:05:21]} Bg5 {[%emt 0:01:39]} 25. Bf4 {[%emt 0:01:17]} Bxf4 {[%emt 0:02:42]} 26. Qxf4 {[%emt 0:01:17]} g5 {[%emt 0:01:11]} 27. Qg3 {[%emt 0:00:59]} (27. Qh2 $14) 27... f4 $36 {[%emt 0:01:31][%mdl 2048] Black is pushing.} 28. Qd3 {[%emt 0:03:56]} Qh7 {[%emt 0:01:08] Inhibits Qg6+.} 29. Qxh7+ {[%emt 0:01:26]} Kxh7 {[%emt 0:01:07]} 30. Bd3+ {[%emt 0:00:19]} Kg7 {[%emt 0:00:07]} 31. Kg2 {[%emt 0:00:41]} Bc6 {[%emt 0:00:15]} 32. b3 {[%emt 0:02:49]} (32. h4 $11) 32... Be8 {[%emt 0:00:10]} (32... Rfc8 $1 $17 {Threatens to win with ...Be8.} 33. h4 Be8 34. hxg5 Rxc3 35. Rxc3 Rxc3 36. gxh6+ Kxh6 37. Rh1+ Kg5) 33. h4 $1 $15 {[%emt 0:03:33]} Bg6 {[%emt 0:00:31]} 34. Bxg6 {[%emt 0:00:07]} Kxg6 {[%emt 0:00:06][%mdl 4096] Endgame KRR-KRR} 35. h5+ {[%emt 0:00:05]} Kg7 {[%emt 0:00:43]} (35... Kf7 $5 {[%cal Rf8c8]}) 36. c4 {[%emt 0:00:24]} ({Better is} 36. b4 $15) 36... bxc4 {[%emt 0:05:29]} (36... dxc4 $19 {aiming for ...c3.} 37. bxc4 bxc4) 37. bxc4 {[%emt 0:00:06]} dxc4 {[%emt 0:01:09]} ({And not} 37... Rxc4 38. Rxc4 dxc4 39. Rc1 $17) 38. Kf3 {[%emt 0:00:34]} Rb8 {[%emt 0:00:51]} ({Black should try} 38... Rd8 $1 $17 {[%cal Rd8d4]} 39. Rfd1 a5) 39. Rf2 {[%emt 0:01:02]} (39. Rc3 $1 $11 {was the only way to keep the balance.}) 39... Kf7 {[%emt 0:02:43]} (39... a5 $17 {White must now prevent ...a4.} 40. Rc3 Rb4) 40. Rc3 {[%emt 0:00:56]} (40. Rfc2 $11 {remains equal.}) 40... Ke7 $17 {[%emt 0:01:36]} 41. Rfc2 {[%emt 0:00:49] [#]} Rb4 {[%emt 0:02:40]} (41... Kd7 $1 $17) 42. Ke4 $2 {[%emt 0:00:59] [#]} (42. a3 $11 Rb5 43. Rxc4 Rxc4 44. Rxc4) 42... Kd7 $1 $19 {[%emt 0:01:10]} 43. Rd2 {[%emt 0:03:34]} Rb1 {[%emt 0:01:01]} 44. Rdc2 $2 {[%emt 0:00:18]} (44. Kf3 {keeps fighting.}) 44... Rg1 {[%emt 0:01:00]} 45. Rxc4 {[%emt 0:02:03]} Rxc4 {[%emt 0:00:57]} 46. Rxc4 {[%emt 0:00:10]} Rxg4 {[%emt 0:00:06] Hoping for ...Rg3.} 47. Ra4 {[%emt 0:01:24]} Rg3 {[%emt 0:01:58][%csl Gf4][%cal Rg3e3]} 48. Rxa6 {[%emt 0:00:17]} (48. d5 $19 exd5+ 49. Kxd5 Rd3+ 50. Ke4 Re3+ 51. Kf5) 48... Re3# {[%emt 0:00:11] Weighted Error Value: White=0.49/Black=0.22 (precise)} 0-1

[Event "Asian Amateur-ch Open 2022"]
[Site "Muscat"]
[Date "2022.10.02"]
[Round "3.18"]
[White "Muhammed, Zahid"]
[Black "Hayabik, Husain"]
[Result "1-0"]
[ECO "C56"]
[WhiteElo "1677"]
[BlackElo "1828"]
[Annotator "NA RC COMBH"]
[PlyCount "105"]
[EventDate "2022.09.29"]
[EventType "swiss"]
[SourceTitle "playchess.com"]
[Source "ChessBase"]
[SourceQuality "1"]
[TimeControl "5400+30"]

1. e4 {[%emt 0:00:07]} e5 {[%emt 0:00:04]} 2. Nf3 {[%emt 0:00:15]} Nc6 {[%emt 0:00:12]} 3. d4 {[%emt 0:00:44]} exd4 {[%emt 0:00:03]} 4. Bc4 {[%emt 0:00:32]} Nf6 {[%emt 0:00:30]} 5. O-O {[%emt 0:00:12]} d6 {[%emt 0:00:27]} 6. Ng5 {[%emt 0:02:32]} Ne5 {[%emt 0:00:30]} 7. Be2 {[%emt 0:06:29]} h6 {[%emt 0:00:31]} 8. Nf3 {[%emt 0:00:06]} Nxe4 {[%emt 0:00:50]} 9. Qxd4 {[%emt 0:01:10]} Nc5 {[%emt 0:07:10]} 10. Nxe5 {[%emt 0:02:16]} dxe5 {[%emt 0:00:02]} 11. Qxe5+ {[%emt 0:01:08]} Qe7 {[%emt 0:00:34]} 12. Qe3 {[%emt 0:02:12]} Qxe3 {[%emt 0:00:22]} 13. Bxe3 {[%emt 0:00:12]} Bd6 {[%emt 0:00:51]} 14. Nc3 {[%emt 0:00:49]} O-O {[%emt 0:01:16]} 15. Nb5 {[%emt 0:01:48]} Na4 {[%emt 0:01:40]} 16. Nxd6 {[%emt 0:04:02]} cxd6 {[%emt 0:00:03]} 17. b3 {[%emt 0:04:05]} Nc3 {[%emt 0:00:38]} 18. Bf3 {[%emt 0:00:13]} Bf5 {[%emt 0:00:58]} 19. Bxb7 {[%emt 0:01:54]} Rab8 {[%emt 0:00:02]} 20. Bf3 {[%emt 0:00:31]} a5 {[%emt 0:00:55]} 21. a4 {[%emt 0:01:57]} Rfc8 {[%emt 0:00:40]} 22. Bd4 {[%emt 0:03:04]} Ne4 {[%emt 0:01:33]} 23. Rfc1 {[%emt 0:05:07]} Nd2 {[%emt 0:00:47]} 24. Bd1 {[%emt 0:01:05]} d5 {[%emt 0:01:38]} 25. Be3 {[%emt 0:01:26]} Ne4 {[%emt 0:00:18]} 26. c4 {[%emt 0:02:03]} dxc4 {[%emt 0:00:26]} 27. bxc4 {[%emt 0:01:06]} Nc5 {[%emt 0:01:02]} 28. Bxc5 {[%emt 0:01:44]} Rxc5 {[%emt 0:00:02]} 29. Ra3 {[%emt 0:04:05]} Rb4 {[%emt 0:01:32]} 30. Rac3 {[%emt 0:00:40]} Bd7 {[%emt 0:00:33]} 31. f3 {[%emt 0:02:11]} Bxa4 {[%emt 0:00:10]} 32. Bxa4 {[%emt 0:00:31]} Rxa4 {[%emt 0:00:27]} 33. Kf2 {[%emt 0:02:23]} Ra2+ {[%emt 0:00:25]} 34. R1c2 {[%emt 0:00:27]} Ra1 {[%emt 0:00:44]} 35. Ke3 {[%emt 0:00:11]} Rd1 {[%emt 0:01:13]} 36. Rd3 {[%emt 0:06:10]} Ra1 {[%emt 0:01:48]} 37. Kd4 {[%emt 0:01:50]} Rc8 {[%emt 0:00:06]} 38. c5 {[%emt 0:01:32]} Rd8+ {[%emt 0:00:19]} 39. Ke3 {[%emt 0:02:45]} Re1+ {[%emt 0:00:22]} 40. Kd2 {[%emt 0:00:42]} Rxd3+ {[%emt 0:01:20]} 41. Kxd3 {[%emt 0:00:12]} Re7 {[%emt 0:00:20]} 42. Kc4 {[%emt 0:00:37]} Kf8 {[%emt 0:00:10]} 43. c6 {[%emt 0:00:30]} Ke8 {[%emt 0:00:14]} 44. Rd2 {[%emt 0:03:10]} Re1 {[%emt 0:01:09]} 45. Kb5 {[%emt 0:00:38]} Rb1+ {[%emt 0:00:38]} 46. Kxa5 {[%emt 0:00:59]} Ke7 {[%emt 0:00:42]} 47. c7 {[%emt 0:04:41]} Rc1 {[%emt 0:00:19]} 48. Kb6 {[%emt 0:00:06]} Rb1+ {[%emt 0:00:15]} 49. Ka7 {[%emt 0:00:30]} Rc1 {[%emt 0:00:31]} 50. Kb8 {[%emt 0:00:25]} Rb1+ {[%emt 0:00:02]} 51. Kc8 {[%emt 0:00:18]} g5 {[%emt 0:00:10]} 52. Re2+ {[%emt 0:01:51]} Kf6 {[%emt 0:00:30]} 53. Re4 {[%emt 0:00:19]} 1-0

[Event "Asian Amateur-ch Open 2022"]
[Site "Muscat"]
[Date "2022.10.02"]
[Round "3.19"]
[White "Al Balushi, Said"]
[Black "Al Ansi Amin"]
[Result "0-1"]
[ECO "B01"]
[WhiteElo "1495"]
[BlackElo "1806"]
[Annotator "NA RC COMBH"]
[PlyCount "121"]
[EventDate "2022.09.29"]
[EventType "swiss"]
[SourceTitle "playchess.com"]
[Source "ChessBase"]
[SourceQuality "1"]
[TimeControl "5400+30"]

1. e4 {[%emt 0:00:59]} d5 {[%emt 0:00:27]} 2. exd5 {[%emt 0:01:07]} Qxd5 {[%emt 0:00:16]} 3. Nc3 {[%emt 0:00:17]} Qd6 {[%emt 0:00:01]} 4. d4 {[%emt 0:02:27]} Nf6 {[%emt 0:00:34]} 5. Nf3 {[%emt 0:00:39]} Bg4 {[%emt 0:00:16]} 6. Nb5 {[%emt 0:06:07]} Qd8 {[%emt 0:01:10]} 7. c4 {[%emt 0:01:24]} c6 {[%emt 0:00:41]} 8. Nc3 {[%emt 0:00:40]} e6 {[%emt 0:00:09]} 9. Be2 {[%emt 0:03:12]} Bd6 {[%emt 0:00:59]} 10. O-O {[%emt 0:03:39]} Nbd7 {[%emt 0:02:52]} 11. Re1 {[%emt 0:03:25]} O-O {[%emt 0:01:25]} 12. Ne5 {[%emt 0:09:18]} Bxe2 {[%emt 0:03:35]} 13. Qxe2 {[%emt 0:00:35]} Qc8 {[%emt 0:18:47]} 14. c5 {[%emt 0:07:32]} Be7 {[%emt 0:02:02]} 15. b4 {[%emt 0:09:54]} Nxe5 {[%emt 0:07:45]} 16. Qxe5 {[%emt 0:07:38]} Rd8 {[%emt 0:01:14]} 17. Bf4 {[%emt 0:04:20]} Nd5 {[%emt 0:04:42]} 18. Nxd5 {[%emt 0:00:36]} Rxd5 {[%emt 0:00:11]} 19. Qe2 {[%emt 0:02:33]} Rxd4 {[%emt 0:06:44]} 20. Bd2 {[%emt 0:01:00]} Qd7 {[%emt 0:01:30]} 21. Bc3 {[%emt 0:00:19]} Rd3 {[%emt 0:00:45]} 22. Rad1 {[%emt 0:05:02]} Rd8 {[%emt 0:01:23]} 23. Rxd3 {[%emt 0:05:30]} Qxd3 {[%emt 0:00:39]} 24. Qxd3 {[%emt 0:00:04]} Rxd3 {[%emt 0:00:15]} 25. Be5 {[%emt 0:02:00]} Kf8 {[%emt 0:02:33]} 26. Kf1 {[%emt 0:01:27]} a6 {[%emt 0:00:53]} 27. Ke2 {[%emt 0:00:50]} Rd5 {[%emt 0:00:04]} 28. Bc3 {[%emt 0:01:50]} f5 {[%emt 0:00:23]} 29. f4 {[%emt 0:05:04]} Kf7 {[%emt 0:00:17]} 30. Kf3 {[%emt 0:04:02]} Rd3+ {[%emt 0:00:50]} 31. Re3 {[%emt 0:00:02]} Rxe3+ {[%emt 0:00:57]} 32. Kxe3 {[%emt 0:00:03]} Bf6 {[%emt 0:02:27]} 33. Bxf6 {[%emt 0:10:02]} Kxf6 {[%emt 0:00:38]} 34. Kd4 {[%emt 0:01:03]} e5+ {[%emt 0:03:31]} 35. fxe5+ {[%emt 0:00:20]} Ke6 {[%emt 0:00:17]} 36. h4 {[%emt 0:00:47]} g6 {[%emt 0:00:29]} 37. g3 {[%emt 0:02:05]} h6 {[%emt 0:00:04]} 38. a3 {[%emt 0:00:24]} g5 {[%emt 0:02:17]} 39. h5 {[%emt 0:01:08]} f4 {[%emt 0:00:26]} 40. gxf4 {[%emt 0:00:18]} gxf4 {[%emt 0:00:02]} 41. Ke4 {[%emt 0:00:13]} f3 {[%emt 0:00:47]} 42. Kxf3 {[%emt 0:00:02]} Kxe5 {[%emt 0:00:01]} 43. Kg4 {[%emt 0:00:59]} Ke4 {[%emt 0:00:09]} 44. a4 {[%emt 0:00:35]} Ke5 {[%emt 0:00:05]} 45. a5 {[%emt 0:00:55]} Ke4 {[%emt 0:00:03]} 46. Kg3 {[%emt 0:00:29]} Kf5 {[%emt 0:00:02]} 47. Kf3 {[%emt 0:00:09]} Kg5 {[%emt 0:00:25]} 48. Ke4 {[%emt 0:00:26]} Kxh5 {[%emt 0:00:59]} 49. Kf5 {[%emt 0:00:36]} Kh4 {[%emt 0:00:16]} 50. Ke6 {[%emt 0:00:48]} Kg5 {[%emt 0:00:35]} 51. Kd7 {[%emt 0:00:25]} h5 {[%emt 0:38:08]} 52. Kc7 {[%emt 0:00:08]} h4 {[%emt 0:00:00]} 53. Kxb7 {[%emt 0:00:02]} h3 {[%emt 0:00:00]} 54. Kxa6 {[%emt 0:00:14]} h2 {[%emt 0:00:00]} 55. Kb7 {[%emt 0:01:10]} h1=Q {[%emt 0:00:00]} 56. a6 {[%emt 0:00:03]} Qb1 {[%emt 0:00:00]} 57. a7 {[%emt 0:00:39]} Qxb4+ {[%emt 0:00:00]} 58. Kc8 {[%emt 0:01:24]} Qxc5 {[%emt 0:00:00]} 59. a8=Q {[%emt 0:00:27]} Qf8+ {[%emt 0:00:00]} 60. Kb7 {[%emt 0:00:24]} Qxa8+ {[%emt 0:00:00]} 61. Kxa8 {[%emt 0:00:02]} 0-1